bitfinex/quotes_SOLUSD_20240622
["timestamp","ask_amount","ask_price","bid_price","bid_amount"]
[1719061415421,27.4417,134.38,134.34,0.34]
[1719061416318,6.51,134.37,134.34,0.34]
[1719061417218,7.4422,134.37,134.34,0.34]
[1719061417402,27.4416,134.38,134.34,0.34]
[1719061417611,26.51,134.38,134.34,0.34]
[1719061419321,33.9515,134.38,134.34,0.34]
[1719061419525,20.0,134.38,134.34,7.7837]
[1719061419702,33.9508,134.4,134.35,6.51]
[1719061419898,7.4411,134.39,134.36,0.34]
[1719061420107,13.9511,134.39,134.36,0.34]
[1719061420320,13.9511,134.39,134.36,0.17]
[1719061420625,13.9512,134.39,134.37,0.17]
[1719061420819,13.9512,134.39,134.36,0.17]
[1719061421027,13.9512,134.39,134.35,0.34]
[1719061421260,7.4416,134.38,134.35,0.34]
[1719061421405,13.9516,134.38,134.35,0.34]
[1719061422640,6.51,134.38,134.35,0.34]
[1719061424235,6.51,134.39,134.35,0.34]
[1719061424619,6.51,134.39,134.35,7.7832]
[1719061426141,6.51,134.39,134.35,0.34]
[1719061426641,13.951,134.39,134.35,0.34]
[1719061429750,6.51,134.39,134.35,0.34]
[1719061430426,20.0,134.4,134.35,7.783]
[1719061430625,6.51,134.39,134.35,7.783]
[1719061430838,6.51,134.39,134.35,0.34]
[1719061434256,27.4405,134.4,134.35,0.34]
[1719061434436,6.51,134.39,134.35,0.34]
[1719061434753,6.51,134.37,134.34,6.3023]
[1719061434941,7.4412,134.39,134.34,6.3023]
[1719061435334,6.51,134.37,134.34,6.3023]
[1719061435840,6.51,134.37,134.35,0.17]
[1719061436743,6.51,134.37,134.35,0.34]
[1719061437431,6.51,134.38,134.35,0.34]
[1719061438442,6.51,134.39,134.35,0.34]
[1719061438828,27.4406,134.4,134.35,0.34]
[1719061439026,6.51,134.39,134.35,0.34]
[1719061439226,27.4406,134.4,134.35,0.34]
[1719061439653,6.51,134.39,134.35,0.34]
[1719061440266,20.0,134.4,134.35,14.2928]
[1719061440435,26.51,134.4,134.35,14.2928]
[1719061441763,11.26142941,134.45,134.37,6.51]
[1719061441940,20.0,134.44,134.39,6.51]
[1719061442140,26.51,134.45,134.41,7.4399]
[1719061442452,26.51,134.45,134.42,0.34]
[1719061442967,20.0,134.45,134.42,0.34]
[1719061443138,20.0,134.45,134.43,0.17]
[1719061443339,20.0,134.45,134.41,0.34]
[1719061443539,20.0,134.45,134.41,6.85]
[1719061444158,7.444,134.46,134.42,6.51]
[1719061444331,7.444,134.46,134.43,0.34]
[1719061445446,7.444,134.45,134.43,6.85]
[1719061446256,7.444,134.45,134.44,6.51]
[1719061446470,14.8798,134.49,134.45,15.1586]
[1719061446660,7.444,134.49,134.46,0.34]
[1719061447983,14.8796,134.49,134.46,0.34]
[1719061449957,7.444,134.48,134.46,0.34]
[1719061450277,7.444,134.48,134.46,6.85]
[1719061450478,7.444,134.48,134.47,6.51]
[1719061450660,7.444,134.48,134.47,6.85]
[1719061451051,7.444,134.51,134.47,6.85]
[1719061451280,7.444,134.51,134.48,6.85]
[1719061451964,13.954,134.49,134.45,15.1586]
[1719061452172,7.444,134.47,134.45,15.1586]
[1719061452360,14.8807,134.47,134.45,15.1586]
[1719061452562,7.444,134.47,134.45,15.1586]
[1719061453278,13.9462,134.48,134.46,0.17]
[1719061453466,13.9462,134.48,134.46,0.34]
[1719061453776,13.9462,134.48,134.45,15.1586]
[1719061453968,6.51,134.48,134.43,12.8755]
[1719061454173,6.51,134.48,134.43,20.3141]
[1719061455080,7.4355,134.49,134.43,20.3141]
[1719061455290,6.51,134.48,134.44,0.34]
[1719061455459,6.51,134.49,134.44,7.7782]
[1719061456173,6.51,134.49,134.44,6.85]
[1719061456364,13.9458,134.49,134.44,6.85]
[1719061456560,13.9458,134.49,134.44,0.34]
[1719061459684,13.9458,134.49,134.44,6.85]
[1719061461701,6.51,134.49,134.44,14.2881]
[1719061462191,7.4351,134.5,134.44,14.2881]
[1719061462361,6.51,134.49,134.44,14.2881]
[1719061462559,13.9455,134.49,134.44,6.85]
[1719061465382,13.9455,134.49,134.44,0.34]
[1719061466685,13.9455,134.49,134.44,7.7781]
[1719061467581,6.51,134.49,134.44,7.7781]
[1719061468489,7.4351,134.5,134.44,7.7781]
[1719061468683,7.4345,134.51,134.45,7.4376]
[1719061468872,20.0,134.5,134.46,0.34]
[1719061469077,33.9449,134.5,134.46,0.34]
[1719061469286,6.51,134.49,134.46,0.34]
[1719061469582,6.51,134.49,134.47,0.17]
[1719061470279,27.4349,134.5,134.45,7.7776]
[1719061470480,6.51,134.49,134.45,7.7776]
[1719061472890,6.51,134.49,134.45,0.34]
[1719061473191,27.4349,134.5,134.45,0.34]
[1719061473364,6.51,134.49,134.45,0.34]
[1719061473908,6.51,134.48,134.45,0.34]
[1719061474200,6.51,134.48,134.43,13.8041]
[1719061474201,6.51,134.48,134.46,0.17]
[1719061474379,6.51,134.48,134.44,0.34]
[1719061476485,6.51,134.48,134.44,7.7781]
[1719061476998,27.4351,134.5,134.44,7.7781]
[1719061477185,6.51,134.48,134.44,7.7781]
[1719061481875,20.0,134.5,134.45,7.4375]
[1719061482076,6.51,134.49,134.46,0.34]
[1719061484202,6.51,134.48,134.47,0.17]
[1719061484378,6.51,134.48,134.45,0.34]
[1719061497891,6.51,134.49,134.45,0.34]
[1719061500199,26.51,134.5,134.45,7.7775]
[1719061501413,33.945,134.5,134.45,0.34]
[1719061504616,6.51,134.48,134.45,0.34]
[1719061504794,6.51,134.47,134.43,6.3655]
[1719061506108,6.51,134.47,134.44,0.34]
[1719061506289,13.9466,134.47,134.44,0.34]
[1719061508317,6.51,134.46,134.44,0.34]
[1719061508494,7.4361,134.48,134.44,0.34]
[1719061508701,6.51,134.46,134.44,0.34]
[1719061509290,6.51,134.47,134.44,0.34]
[1719061513990,13.9467,134.47,134.44,0.34]
[1719061519022,13.76278407,134.47,134.44,0.34]
[1719061521919,7.4377,134.45,134.44,0.17]
[1719061522221,7.4392,134.43,134.39,22.6874]
[1719061522416,13.9492,134.43,134.39,22.6874]
[1719061523009,7.4394,134.42,134.39,22.6874]
[1719061523314,6.51,134.41,134.37,7.4417]
[1719061524503,6.51,134.41,134.35,22.6874]
[1719061524504,6.51,134.4,134.35,29.1974]
[1719061525112,6.51,134.4,134.35,22.6874]
[1719061525500,6.51,134.4,134.35,36.6405]
[1719061526317,6.51,134.4,134.36,0.17]
[1719061526512,6.51,134.4,134.36,0.34]
[1719061527419,6.51,134.4,134.36,7.7826]
[1719061529227,6.51,134.4,134.36,0.34]
[1719061530436,6.51,134.39,134.34,7.4437]
[1719061530811,6.51,134.38,134.32,22.7727]
[1719061531011,33.9517,134.38,134.32,30.2172]
[1719061531229,6.51,134.37,134.32,30.2172]
[1719061531827,13.9522,134.37,134.33,0.17]
[1719061532127,6.51,134.36,134.33,0.34]
[1719061533233,7.4422,134.37,134.33,0.34]
[1719061533826,7.4432,134.36,134.31,6.51]
[1719061534128,6.51,134.35,134.3,7.4459]
[1719061534308,6.51,134.35,134.3,13.9559]
[1719061535234,13.9532,134.36,134.31,0.17]
[1719061535529,13.9532,134.36,134.31,0.34]
[1719061538041,27.46,134.38,134.31,0.34]
[1719061538042,6.51,134.33,134.31,0.34]
[1719061538231,6.51,134.33,134.29,0.8782272]
[1719061538232,13.9545,134.33,134.3,0.34]
[1719061540230,6.51,134.33,134.3,0.34]
[1719061544055,13.954,134.34,134.3,0.34]
[1719061544758,7.4433,134.35,134.3,6.85]
[1719061545053,20.0,134.34,134.3,6.85]
[1719061545219,7.4429,134.36,134.31,6.51]
[1719061545419,7.4429,134.36,134.32,0.34]
[1719061545621,13.9529,134.36,134.32,0.34]
[1719061546334,7.4432,134.35,134.32,0.34]
[1719061547946,7.4438,134.34,134.32,0.34]
[1719061548338,13.9538,134.34,134.32,0.34]
[1719061548645,13.9538,134.34,134.32,0.17]
[1719061548843,13.9538,134.34,134.29,0.8782272]
[1719061549543,7.4445,134.33,134.29,0.8782272]
[1719061550149,7.4445,134.33,134.3,0.17]
[1719061550354,7.4445,134.33,134.3,0.34]
[1719061551236,13.9539,134.34,134.3,0.34]
[1719061551438,6.51,134.34,134.3,0.34]
[1719061552236,7.4427,134.36,134.3,14.2958]
[1719061552423,6.51,134.35,134.3,14.2958]
[1719061553028,7.4427,134.36,134.3,14.2958]
[1719061553253,6.51,134.35,134.3,14.2958]
[1719061553633,13.9533,134.35,134.3,14.2958]
[1719061554242,6.51,134.35,134.3,14.2958]
[1719061554569,7.4422,134.37,134.33,15.8126]
[1719061554747,7.4422,134.37,134.34,0.34]
[1719061555329,13.9516,134.38,134.34,0.34]
[1719061556430,6.51,134.38,134.34,0.34]
[1719061556648,13.9519,134.38,134.34,0.34]
[1719061557650,7.4417,134.38,134.34,0.34]
[1719061557843,13.9517,134.38,134.34,0.34]
[1719061558658,7.4417,134.38,134.34,0.34]
[1719061558859,7.4417,134.38,134.34,6.85]
[1719061559058,7.4417,134.38,134.35,6.51]
[1719061559229,14.9012,134.39,134.36,0.34]
[1719061559436,7.46,134.39,134.36,0.34]
[1719061560059,7.46,134.4,134.36,0.34]
[1719061560455,14.9011,134.39,134.36,0.34]
[1719061562840,7.46,134.39,134.36,0.34]
[1719061563250,7.46,134.41,134.36,6.8548]
[1719061563453,7.46,134.41,134.39,13.9509]
[1719061563654,7.46,134.41,134.4,6.85]
[1719061564239,7.46,134.44,134.4,6.85]
[1719061565442,7.46,134.44,134.41,6.51]
[1719061565646,7.46,134.44,134.42,0.34]
[1719061566161,7.46,134.44,134.42,0.17]
[1719061566465,7.46,134.44,134.41,0.34]
[1719061570772,21.4084,134.44,134.41,0.34]
[1719061570942,14.8984,134.44,134.41,0.34]
[1719061571149,7.46,134.42,134.41,0.34]
[1719061573271,7.46,134.43,134.41,0.34]
[1719061574462,7.46,134.43,134.4,0.34]
[1719061578580,7.46,134.42,134.4,0.34]
[1719061578783,7.46,134.42,134.4,6.85]
[1719061579856,7.46,134.43,134.4,6.85]
[1719061580480,7.46,134.43,134.4,14.2904]
[1719061580669,7.46,134.43,134.4,6.85]
[1719061584612,7.46,134.42,134.4,6.85]
[1719061584761,7.46,134.42,134.41,6.51]
[1719061584962,7.46,134.42,134.41,6.85]
[1719061585669,7.46,134.44,134.41,6.85]
[1719061585981,7.46,134.44,134.42,0.34]
[1719061587183,7.4378,134.45,134.42,0.34]
[1719061587781,13.9474,134.46,134.42,0.34]
[1719061588391,7.4365,134.48,134.42,14.2893]
[1719061588602,13.9465,134.48,134.43,22.6396]
[1719061588767,13.9465,134.48,134.44,0.34]
[1719061589690,7.4368,134.47,134.44,0.34]
[1719061590492,7.4362,134.48,134.44,0.34]
[1719061590793,7.46,134.47,134.44,0.34]
[1719061592282,7.46,134.46,134.44,0.34]
[1719061593296,7.46,134.47,134.44,0.34]
[1719061594687,7.46,134.47,134.41,6.6291]
[1719061594892,13.97,134.46,134.41,6.6291]
[1719061595500,6.51,134.45,134.41,6.6291]
[1719061595886,13.9478,134.45,134.41,6.6291]
[1719061596193,13.9478,134.45,134.42,0.17]
[1719061596392,6.51,134.44,134.42,0.17]
[1719061596576,6.51,134.44,134.41,0.17]
[1719061597695,7.4393,134.43,134.37,35.5956]
[1719061598004,6.51,134.43,134.39,7.4407]
[1719061598900,6.51,134.43,134.4,0.17]
[1719061599097,6.51,134.43,134.4,0.34]
[1719061599295,6.51,134.43,134.39,0.34]
[1719061602401,266.91,134.43,134.39,0.34]
[1719061602609,6.51,134.43,134.39,0.34]
[1719061603510,13.9489,134.43,134.39,0.34]
[1719061606889,13.9484,134.44,134.39,6.85]
[1719061607085,7.4378,134.45,134.39,14.2909]
[1719061607310,13.9478,134.45,134.4,6.51]
[1719061607505,7.46,134.48,134.41,14.2898]
[1719061607690,7.46,134.46,134.42,0.17]
[1719061607894,13.9477,134.45,134.4,13.9503]
[1719061608101,13.9477,134.45,134.41,0.34]
[1719061608694,21.4073,134.46,134.41,0.34]
[1719061609094,21.4073,134.46,134.41,6.85]
[1719061610282,14.8973,134.46,134.41,14.2897]
[1719061611187,21.4073,134.46,134.41,14.2897]
[1719061611594,13.9473,134.46,134.41,14.2897]
[1719061613705,6.51,134.46,134.41,14.2897]
[1719061614105,13.9468,134.47,134.41,14.2897]
[1719061619005,13.9468,134.47,134.41,30.7399]
[1719061619312,44.6307,134.52,134.41,30.7399]
[1719061619313,6.5706467,134.51,134.43,6.5189]
[1719061619520,13.9452,134.5,134.44,14.2878]
[1719061620193,13.9452,134.5,134.45,16.4502]
[1719061620515,7.4352,134.5,134.46,0.34]
[1719061620696,6.51,134.51,134.46,0.34]
[1719061620697,7.4355,134.49,134.46,0.34]
[1719061621517,7.4351,134.5,134.46,0.34]
[1719061621751,13.9451,134.5,134.46,0.34]
[1719061622595,7.4356,134.49,134.46,0.34]
[1719061626018,13.9451,134.5,134.46,0.34]
[1719061626327,7.4351,134.5,134.46,0.34]
[1719061627303,7.46,134.52,134.49,6.51]
[1719061627502,7.46,134.52,134.5,6.85]
[1719061628194,7.46,134.54,134.51,6.51]
[1719061628392,7.46,134.54,134.52,0.34]
[1719061629020,7.46,134.54,134.51,0.34]
[1719061629219,7.46,134.54,134.51,6.85]
[1719061630310,7.46,134.54,134.52,6.51]
[1719061630524,7.46,134.54,134.53,0.34]
[1719061631019,7.46,134.54,134.53,6.85]
[1719061631717,7.46,134.54,134.53,14.2832]
[1719061631916,7.46,134.57,134.53,14.2832]
[1719061633327,7.46,134.56,134.54,7.4324]
[1719061633513,7.46,134.56,134.55,6.85]
[1719061634320,7.46,134.59,134.55,6.85]
[1719061636318,7.46,134.58,134.55,0.34]
[1719061636627,13.97,134.58,134.55,0.34]
[1719061636823,6.51,134.58,134.56,0.17]
[1719061637021,6.51,134.58,134.54,0.34]
[1719061637218,13.9405,134.58,134.54,0.34]
[1719061638013,13.9405,134.58,134.53,16.2842]
[1719061638811,6.51,134.58,134.53,22.7942]
[1719061639029,6.51,134.59,134.55,7.4321]
[1719061639533,6.51,134.59,134.56,0.17]
[1719061640110,7.4296,134.6,134.56,0.34]
[1719061640325,13.958,134.59,134.56,0.34]
[1719061640635,7.448,134.59,134.56,0.34]
[1719061644319,13.958,134.59,134.56,0.34]
[1719061644659,7.448,134.59,134.56,0.34]
[1719061645849,7.448,134.6,134.56,0.34]
[1719061646143,14.8774,134.6,134.56,0.34]
[1719061647531,21.3874,134.6,134.56,0.34]
[1719061648524,14.8779,134.59,134.56,0.34]
[1719061649841,7.448,134.59,134.56,0.34]
[1719061655535,13.9396,134.6,134.56,0.34]
[1719061657832,7.4296,134.6,134.56,0.34]
[1719061659033,13.9396,134.6,134.56,0.34]
[1719061659733,7.4296,134.6,134.56,0.34]
[1719061659934,13.9396,134.6,134.56,0.34]
[1719061660826,6.51,134.6,134.56,0.34]
[1719061663649,13.9395,134.6,134.56,0.34]
[1719061665752,7.4308,134.58,134.56,0.34]
[1719061665950,6.51,134.57,134.56,0.34]
[1719061667239,7.4302,134.59,134.56,0.34]
[1719061667558,6.51,134.58,134.55,0.34]
[1719061668134,7.4296,134.6,134.55,0.34]
[1719061668354,7.4299,134.59,134.55,0.34]
[1719061668533,6.51,134.58,134.55,0.34]
[1719061671250,6.51,134.57,134.55,0.34]
[1719061672246,6.51,134.58,134.55,0.34]
[1719061672662,7.4296,134.6,134.55,0.34]
[1719061672841,6.51,134.58,134.55,0.34]
[1719061673359,6.51,134.58,134.55,7.772]
[1719061673857,7.429,134.61,134.56,7.4315]
[1719061674070,7.4285,134.62,134.57,0.34]
[1719061674242,7.4285,134.62,134.57,7.771]
[1719061674243,20.0,134.61,134.57,7.771]
[1719061674560,26.51,134.61,134.57,7.771]
[1719061675280,6.51,134.6,134.57,0.34]
[1719061676671,13.9396,134.6,134.57,0.34]
[1719061676870,6.51,134.59,134.56,0.34]
[1719061678053,6.51,134.58,134.56,0.34]
[1719061678251,6.51,134.58,134.55,0.34]
[1719061679077,7.4301,134.59,134.53,16.2842]
[1719061679078,6.51,134.57,134.53,23.7172]
[1719061679773,6.51,134.58,134.53,23.7172]
[1719061680454,7.4276,134.64,134.56,6.51]
[1719061680659,7.4276,134.64,134.55,15.619]
[1719061680660,6.51,134.63,134.58,6.51]
[1719061680880,6.51,134.63,134.59,0.34]
[1719061681851,7.4276,134.64,134.59,0.34]
[1719061682653,6.51,134.63,134.59,0.34]
[1719061683787,6.51,134.63,134.59,7.7699]
[1719061683988,7.4276,134.64,134.59,14.2799]
[1719061684154,13.9376,134.64,134.59,14.2799]
[1719061687583,7.4276,134.64,134.59,14.2799]
[1719061687762,13.9376,134.64,134.59,6.85]
[1719061687962,13.9376,134.64,134.59,0.34]
[1719061688177,7.4277,134.63,134.59,0.34]
[1719061691992,13.9374,134.64,134.59,0.34]
[1719061693585,7.4278,134.63,134.59,0.34]
[1719061694160,7.4284,134.62,134.59,0.34]
[1719061694366,13.9384,134.62,134.59,0.34]
[1719061695269,7.4284,134.62,134.59,0.34]
[1719061695480,7.1784,134.62,134.59,0.34]
[1719061695683,13.6884,134.62,134.59,0.34]
[1719061696590,6.51,134.62,134.59,0.34]
[1719061697767,7.4279,134.63,134.59,0.34]
[1719061697963,7.4272,134.64,134.59,7.7698]
[1719061698174,6.51,134.62,134.59,7.7698]
[1719061698376,7.4272,134.64,134.59,7.7698]
[1719061698574,6.51,134.62,134.59,7.7698]
[1719061699969,7.4272,134.64,134.59,7.7698]
[1719061700170,6.51,134.62,134.59,7.7698]
[1719061700693,7.4272,134.64,134.59,7.7698]
[1719061700874,6.51,134.62,134.59,7.7698]
[1719061705590,6.51,134.63,134.59,7.7698]
[1719061705770,7.4272,134.64,134.59,7.7698]
[1719061705972,6.51,134.63,134.59,7.7698]
[1719061708603,6.51,134.63,134.59,0.34]
[1719061711096,7.4272,134.64,134.59,0.34]
[1719061711288,6.51,134.63,134.59,0.34]
[1719061712104,7.4272,134.64,134.59,0.34]
[1719061712275,6.51,134.63,134.59,0.34]
[1719061714608,6.51,134.63,134.59,7.7698]
[1719061714799,13.35802285,134.66,134.55,21.7418]
[1719061714982,13.9397,134.6,134.55,35.6838]
[1719061715186,13.9397,134.6,134.55,29.1738]
[1719061715398,13.9397,134.6,134.55,35.6838]
[1719061715905,6.51,134.6,134.56,7.4315]
[1719061716281,13.9391,134.61,134.56,13.9415]
[1719061716487,13.9391,134.61,134.57,0.34]
[1719061718884,13.9391,134.61,134.58,0.17]
[1719061719086,13.9391,134.61,134.56,0.34]
[1719061720411,7.4295,134.6,134.56,0.34]
[1719061721111,13.9395,134.6,134.56,0.34]
[1719061724132,7.4303,134.59,134.56,0.34]
[1719061724418,6.51,134.57,134.56,0.34]
[1719061725312,6.51,134.58,134.56,0.34]
[1719061727012,13.9401,134.59,134.56,0.34]
[1719061727810,6.51,134.59,134.56,0.34]
[1719061728396,13.9396,134.6,134.56,0.34]
[1719061728615,6.51,134.6,134.56,0.34]
[1719061729120,13.9395,134.6,134.56,0.34]
[1719061734930,7.43,134.59,134.56,0.34]
[1719061737024,7.43,134.59,134.56,6.5929]
[1719061737823,7.43,134.59,134.56,13.1029]
[1719061739727,18.5706,134.63,134.57,6.51]
[1719061739917,7.4285,134.62,134.59,6.51]
[1719061740118,7.4285,134.62,134.6,0.34]
[1719061741727,7.4289,134.61,134.59,0.34]
[1719061742932,7.4285,134.62,134.59,0.34]
[1719061749323,7.4279,134.63,134.59,0.34]
[1719061751623,7.4283,134.62,134.59,0.34]
[1719061755543,24.53785477,134.65,134.59,0.34]
[1719061755544,7.4279,134.63,134.59,0.34]
[1719061755724,7.448,134.66,134.61,6.51]
[1719061755934,7.4268,134.65,134.62,0.34]
[1719061757625,7.4268,134.65,134.62,6.85]
[1719061759825,14.8742,134.66,134.62,6.85]
[1719061760025,14.8742,134.66,134.62,0.34]
[1719061763351,7.4267,134.65,134.62,6.85]
[1719061763642,7.4267,134.65,134.62,0.34]
[1719061766448,21.3843,134.66,134.62,0.34]
[1719061767248,7.4267,134.65,134.62,0.34]
[1719061767453,13.9367,134.65,134.61,0.34]
[1719061769563,13.9372,134.64,134.61,0.34]
[1719061770032,13.9378,134.63,134.61,0.34]
[1719061770229,6.51,134.63,134.59,15.9748]
[1719061770539,6.51,134.63,134.57,6.2651]
[1719061770540,6.51,134.61,134.57,7.431]
[1719061770733,13.9383,134.62,134.57,13.941]
[1719061771044,13.9389,134.61,134.56,13.9415]
[1719061771460,6.51,134.61,134.56,13.9415]
[1719061771659,6.51,134.61,134.57,7.4309]
[1719061772367,6.51,134.62,134.58,7.7701]
[1719061772660,7.4281,134.63,134.59,7.4298]
[1719061772661,6.51,134.63,134.59,7.4298]
[1719061772956,57.1720409,134.68,134.6,22.42]
[1719061772957,13.958,134.66,134.6,22.42]
[1719061773138,7.448,134.66,134.61,0.17]
[1719061773751,21.3843,134.66,134.61,7.5988]
[1719061773962,21.3843,134.66,134.62,0.17]
[1719061775038,21.3843,134.66,134.61,0.34]
[1719061777958,7.4268,134.65,134.61,0.34]
[1719061778143,14.8743,134.66,134.61,6.85]
[1719061778351,21.3843,134.66,134.61,6.85]
[1719061779782,7.4268,134.65,134.61,6.85]
[1719061780343,7.4268,134.65,134.61,0.34]
[1719061782368,13.9368,134.65,134.61,0.34]
[1719061784868,6.51,134.65,134.61,0.34]
[1719061785373,13.9366,134.65,134.61,0.34]
[1719061787369,6.51,134.65,134.61,0.34]
[1719061788243,14.8743,134.66,134.61,7.7687]
[1719061788448,21.3843,134.66,134.61,7.7687]
[1719061788660,14.8743,134.66,134.61,7.7687]
[1719061788960,21.3843,134.66,134.61,7.7687]
[1719061791479,14.8743,134.66,134.61,7.7687]
[1719061791775,21.3843,134.66,134.61,7.7687]
[1719061795270,7.448,134.66,134.62,7.4282]
[1719061795455,7.448,134.66,134.63,0.34]
[1719061797649,7.448,134.66,134.64,0.17]
[1719061797852,7.448,134.66,134.62,0.34]
[1719061800169,14.8741,134.66,134.62,0.34]
[1719061801244,7.448,134.66,134.62,14.2782]
[1719061806158,7.448,134.66,134.62,7.7682]
[1719061806355,6.51,134.65,134.6,15.57]
[1719061806557,6.51,134.64,134.6,15.57]
[1719061806757,6.51,134.64,134.6,22.9994]
[1719061807881,6.51,134.64,134.61,0.34]
[1719061808658,13.9374,134.64,134.6,15.57]
[1719061809063,6.51,134.63,134.6,15.57]
[1719061810064,6.51,134.63,134.61,0.34]
[1719061815478,6.51,134.62,134.58,13.8295]
[1719061815667,6.51,134.62,134.57,22.5299]
[1719061815860,26.51,134.61,134.57,22.5299]
[1719061817089,26.51,134.61,134.58,0.34]
[1719061819289,20.0,134.61,134.58,7.7703]
[1719061823181,20.0,134.62,134.58,7.7703]
[1719061823381,20.0,134.62,134.58,0.34]
[1719061823884,27.4283,134.62,134.58,0.34]
[1719061826382,27.4283,134.62,134.58,6.85]
[1719061827801,20.0,134.62,134.58,14.2803]
[1719061827980,7.4279,134.63,134.58,14.2803]
[1719061828792,7.4273,134.64,134.59,13.9399]
[1719061828984,7.4273,134.64,134.6,0.34]
[1719061829997,7.4273,134.64,134.6,6.85]
[1719061831497,7.4277,134.63,134.6,6.85]
[1719061833605,7.4277,134.63,134.6,0.34]
[1719061834107,7.4274,134.64,134.6,0.34]
[1719061834316,7.4274,134.64,134.6,6.85]
[1719061836405,7.4274,134.64,134.6,0.34]
[1719061838893,7.4274,134.64,134.6,6.85]
[1719061839803,7.4267,134.65,134.6,6.85]
[1719061840001,13.9367,134.65,134.6,6.85]
[1719061840203,7.4267,134.65,134.61,6.51]
[1719061840418,7.4267,134.65,134.62,0.34]
[1719061841193,13.9367,134.65,134.62,0.34]
[1719061841512,13.9367,134.65,134.63,0.17]
[1719061841715,13.9367,134.65,134.61,0.34]
[1719061844613,13.9367,134.65,134.62,0.17]
[1719061844815,13.9367,134.65,134.6,6.85]
[1719061847594,13.9367,134.65,134.6,14.2793]
[1719061852622,7.4267,134.65,134.6,14.2793]
[1719061852796,13.9367,134.65,134.6,14.2793]
[1719061854224,13.9367,134.65,134.6,6.85]
[1719061854399,6.51,134.63,134.57,15.0991]
[1719061854718,7.4294,134.6,134.57,15.0991]
[1719061854919,13.9394,134.6,134.57,15.0991]
[1719061855827,6.51,134.6,134.57,15.0991]
[1719061856022,13.939,134.61,134.57,15.0991]
[1719061856210,13.939,134.61,134.58,0.34]
[1719061857202,6.51,134.61,134.58,0.34]
[1719061858522,7.4299,134.59,134.58,0.34]
[1719061858909,13.9396,134.6,134.58,0.34]
[1719061859336,6.51,134.6,134.58,0.34]
[1719061862028,7.431,134.58,134.54,15.1134]
[1719061862326,6.51,134.56,134.54,15.1134]
[1719061862531,6.51,134.56,134.52,13.4967]
[1719061863132,6.51,134.56,134.52,6.063]